bitfinex/quotes_BTCUSD_20241028
["timestamp","ask_amount","ask_price","bid_price","bid_amount"]
[1730112289615,3.66632382,68800.0,68799.0,0.43093898]
[1730112290574,3.29178985,68800.0,68799.0,0.43093898]
[1730112290794,3.31456838,68800.0,68799.0,0.43093898]
[1730112292993,2.14621557,68800.0,68799.0,0.43093898]
[1730112299015,2.12343704,68800.0,68799.0,0.43093898]
[1730112299431,2.30989004,68800.0,68799.0,0.43093898]
[1730112300689,2.5340272,68800.0,68799.0,0.43093898]
[1730112301950,2.5250272,68800.0,68799.0,0.43093898]
[1730112302170,2.68953101,68800.0,68799.0,0.43093898]
[1730112302829,2.67953101,68800.0,68799.0,0.42993898]
[1730112303040,2.69353101,68800.0,68799.0,0.42993898]
[1730112303457,2.71630998,68800.0,68799.0,0.42993898]
[1730112303666,2.56580617,68800.0,68799.0,0.31365898]
[1730112303874,2.56580617,68800.0,68799.0,0.28458898]
[1730112304773,2.55180617,68800.0,68799.0,0.13923898]
[1730112305003,2.68830998,68800.0,68799.0,0.13923898]
[1730112305247,2.70230998,68800.0,68799.0,0.13923898]
[1730112305449,2.70230998,68800.0,68799.0,0.08223898]
[1730112305662,2.94515982,68800.0,68799.0,9.8e-07]
[1730112305910,0.779861,68794.0,68793.0,0.001648]
[1730112306143,1.14945295,68794.0,68793.0,0.001648]
[1730112306390,5.88550695,68794.0,68793.0,0.001648]
[1730112306609,5.06174337,68794.0,68793.0,0.001648]
[1730112307254,5.01785037,68794.0,68793.0,0.001648]
[1730112307467,4.52544637,68794.0,68793.0,0.001648]
[1730112307672,4.07813795,68794.0,68793.0,0.001648]
[1730112308115,3.0965358,68794.0,68793.0,0.001648]
[1730112308341,1.1087978,68794.0,68793.0,0.001648]
[1730112308587,1.00476738,68794.0,68793.0,0.001648]
[1730112308816,1.01876738,68794.0,68793.0,0.001648]
[1730112309064,0.8130058,68794.0,68793.0,0.001648]
[1730112309287,0.89596015,68794.0,68793.0,0.001648]
[1730112309765,0.80102838,68794.0,68793.0,0.001648]
[1730112310005,1.28863038,68794.0,68793.0,0.001648]
[1730112311092,1.2540618,68794.0,68793.0,0.001648]
[1730112312124,1.26284291,68794.0,68793.0,0.001648]
[1730112312332,1.27684291,68794.0,68793.0,0.001648]
[1730112312562,1.59816688,68794.0,68793.0,0.001648]
[1730112313466,1.78086688,68794.0,68793.0,0.001648]
[1730112316414,1.78086688,68794.0,68786.0,1e-06]
[1730112316415,0.779076,68787.0,68786.0,1e-06]
[1730112316643,0.518391,68780.0,68779.0,0.001646]
[1730112316869,2.36612164,68780.0,68779.0,0.001646]
[1730112317087,2.37217502,68780.0,68779.0,0.001646]
[1730112317581,2.29343435,68780.0,68779.0,0.001646]
[1730112317788,2.18482435,68780.0,68779.0,0.001646]
[1730112318006,2.11202435,68780.0,68779.0,0.001646]
[1730112318645,0.8479509,68780.0,68779.0,0.001646]
[1730112319279,0.8619509,68780.0,68779.0,0.001646]
[1730112319510,0.8759509,68780.0,68779.0,0.001646]
[1730112319957,1.02645471,68780.0,68779.0,0.001646]
[1730112320173,1.03984954,68780.0,68779.0,0.001646]
[1730112321083,1.84656854,68780.0,68779.0,0.001646]
[1730112322052,1.92596854,68780.0,68779.0,0.001646]
[1730112322506,2.0967887,68780.0,68779.0,0.001646]
[1730112322729,1.92596854,68780.0,68779.0,0.001646]
[1730112323413,2.0967887,68780.0,68779.0,0.001646]
[1730112323637,2.0835077,68780.0,68779.0,0.001646]
[1730112324072,1.91268754,68780.0,68779.0,0.001646]
[1730112324292,2.0835077,68780.0,68779.0,0.001646]
[1730112324728,1.74186738,68780.0,68779.0,0.001646]
[1730112324939,2.0835077,68780.0,68779.0,0.001646]
[1730112325408,2.0695077,68780.0,68779.0,0.001646]
[1730112325839,2.0835077,68780.0,68779.0,0.001646]
[1730112326067,1.89868754,68780.0,68779.0,0.001646]
[1730112326295,2.0695077,68780.0,68779.0,0.001646]
[1730112327139,1.89868754,68780.0,68779.0,0.001646]
[1730112328052,2.0835077,68780.0,68779.0,0.001646]
[1730112330561,1.91268754,68780.0,68779.0,0.001646]
[1730112330795,2.0835077,68780.0,68779.0,0.001646]
[1730112331655,2.0555077,68780.0,68779.0,0.001646]
[1730112332088,2.0835077,68780.0,68779.0,0.001646]
[1730112332495,2.0695077,68780.0,68779.0,0.001646]
[1730112332738,1.84001722,68780.0,68779.0,0.001646]
[1730112333162,1.85401722,68780.0,68779.0,0.001646]
[1730112333609,1.98459712,68780.0,68779.0,0.001646]
[1730112335386,1.85401722,68780.0,68779.0,0.001646]
[1730112336206,1.23417922,68780.0,68779.0,0.001646]
[1730112336328,3.66867022,68780.0,68779.0,0.001646]
[1730112336942,3.65467022,68780.0,68779.0,0.001646]
[1730112337980,0.145395,68778.0,68777.0,0.001644]
[1730112338235,0.64110268,68774.0,68773.0,0.00266593]
[1730112338452,0.66890681,68774.0,68773.0,0.08266593]
[1730112338653,0.66890681,68774.0,68773.0,0.01266593]
[1730112338654,0.78702374,68774.0,68773.0,0.01266593]
[1730112339074,0.78702374,68774.0,68773.0,0.00266593]
[1730112340163,0.80102374,68774.0,68773.0,0.00266593]
[1730112340397,0.84455476,68774.0,68773.0,0.00266593]
[1730112340616,0.82380956,68774.0,68773.0,0.43887593]
[1730112340841,0.83780956,68774.0,68773.0,0.43887593]
[1730112341494,0.92487791,68774.0,68773.0,0.43887593]
[1730112341718,0.83780956,68774.0,68773.0,0.43887593]
[1730112342137,0.72565972,68774.0,68773.0,0.43887593]
[1730112342338,0.83780956,68774.0,68773.0,0.43887593]
[1730112342547,0.92487791,68774.0,68773.0,0.43887593]
[1730112343158,0.83780956,68774.0,68773.0,0.43887593]
[1730112345044,0.98831337,68774.0,68773.0,0.43887593]
[1730112345579,0.94667729,68774.0,68773.0,0.43887593]
[1730112346870,0.83452745,68774.0,68773.0,0.43887593]
[1730112347081,0.92389147,68774.0,68773.0,0.43887593]
[1730112347544,0.92717358,68774.0,68773.0,0.43887593]
[1730112347749,1.05602374,68774.0,68773.0,0.43887593]
[1730112348006,1.04272755,68774.0,68773.0,0.43887593]
[1730112348559,1.02872755,68774.0,68773.0,0.43887593]
[1730112348779,1.01472755,68774.0,68773.0,0.43887593]
[1730112348980,1.15936883,68774.0,68773.0,0.43887593]
[1730112349213,1.17336883,68774.0,68773.0,0.43887593]
[1730112349421,1.04272755,68774.0,68773.0,0.43887593]
[1730112349650,0.89222374,68774.0,68773.0,0.43887593]
[1730112350049,0.81502374,68774.0,68773.0,0.43887593]
[1730112351646,0.83780973,68774.0,68773.0,0.43887593]
[1730112352201,0.82380973,68774.0,68773.0,0.43887593]
[1730112352838,0.83780973,68774.0,68773.0,0.43887593]
[1730112353064,0.88984295,68774.0,68773.0,0.43887593]
[1730112356404,0.83780973,68774.0,68773.0,0.43887593]
[1730112359884,1.78737957,68774.0,68773.0,0.43887593]
[1730112360276,1.67522973,68774.0,68773.0,0.43887593]
[1730112361269,1.15906673,68774.0,68773.0,0.43887593]
[1730112361469,1.08626673,68774.0,68773.0,0.43887593]
[1730112361670,0.83780973,68774.0,68773.0,0.43887593]
[1730112363193,0.72565989,68774.0,68773.0,0.43887593]
[1730112363416,0.83780973,68774.0,68773.0,0.43887593]
[1730112368482,0.72565989,68774.0,68773.0,0.43887593]
[1730112368704,0.70265989,68774.0,68773.0,0.55887593]
[1730112369117,0.6798739,68774.0,68773.0,0.55887593]
[1730112369341,0.6798739,68774.0,68773.0,0.73647593]
[1730112369810,0.5798739,68774.0,68773.0,0.82437593]
[1730112370052,0.65317798,68774.0,68773.0,0.82437593]
[1730112370258,0.66617798,68774.0,68773.0,0.82437593]
[1730112370487,0.5878739,68774.0,68773.0,0.82437593]
[1730112370939,0.71000533,68774.0,68773.0,0.82437593]
[1730112371400,0.79700533,68774.0,68773.0,0.82437593]
[1730112371625,0.77515166,68774.0,68773.0,0.82437593]
[1730112371828,0.78315166,68774.0,68773.0,0.82437593]
[1730112372052,0.6828739,68774.0,68773.0,0.82437593]
[1730112372251,0.6908739,68774.0,68773.0,0.82437593]
[1730112372693,0.6828739,68774.0,68773.0,0.82437593]
[1730112373098,0.6908739,68774.0,68773.0,0.82437593]
[1730112373552,0.75631219,68774.0,68773.0,0.82437593]
[1730112374011,0.75631188,68774.0,68773.0,0.82437593]
[1730112374919,0.6908739,68774.0,68773.0,0.82437593]
[1730112375398,0.75631188,68774.0,68773.0,0.82437593]
[1730112375605,0.6908739,68774.0,68773.0,0.82437593]
[1730112377134,0.6908739,68774.0,68773.0,0.82637593]
[1730112377564,0.73448391,68774.0,68773.0,0.82637593]
[1730112377777,0.6908739,68774.0,68773.0,0.82637593]
[1730112378200,0.73448334,68774.0,68773.0,0.82637593]
[1730112378835,0.73447947,68774.0,68773.0,0.82637593]
[1730112379308,0.6908739,68774.0,68773.0,0.82637593]
[1730112381499,0.6908739,68774.0,68773.0,0.82437593]
[1730112382232,0.6678739,68774.0,68773.0,0.82437593]
[1730112382455,0.6678739,68774.0,68773.0,0.82637593]
[1730112382681,0.73328226,68774.0,68773.0,0.82637593]
[1730112385234,0.73328226,68774.0,68773.0,0.56387593]
[1730112385643,0.73328226,68774.0,68773.0,0.56587593]
[1730112386874,0.73328226,68774.0,68773.0,0.56387593]
[1730112387705,0.73328226,68774.0,68773.0,0.56587593]
[1730112389109,0.73328226,68774.0,68773.0,0.56387593]
[1730112389535,0.73328226,68774.0,68773.0,0.56587593]
[1730112393588,0.6678739,68774.0,68773.0,0.56587593]
[1730112394641,0.73328226,68774.0,68773.0,0.56587593]
[1730112394851,0.6678739,68774.0,68773.0,0.56587593]
[1730112395473,0.73328226,68774.0,68773.0,0.56587593]
[1730112404551,0.6678739,68774.0,68773.0,0.56587593]
[1730112404768,0.73328226,68774.0,68773.0,0.56587593]
[1730112405572,0.7115026,68774.0,68773.0,0.56587593]
[1730112405748,0.6678739,68774.0,68773.0,0.56587593]
[1730112407753,0.5678739,68774.0,68773.0,0.56587593]
[1730112408586,0.63333324,68774.0,68773.0,0.56587593]
[1730112408772,0.02196709,68774.0,68773.0,0.57087593]
[1730112408979,0.21101534,68774.0,68773.0,0.57087593]
[1730112409192,0.02196709,68774.0,68773.0,0.57587593]
[1730112409396,0.02196709,68774.0,68773.0,0.82547593]
[1730112409736,0.02196709,68774.0,68773.0,0.97088093]
[1730112410423,0.02196709,68774.0,68773.0,0.82547593]
[1730112410629,0.16737009,68774.0,68773.0,0.82547593]
[1730112410967,0.15937009,68774.0,68773.0,0.82547593]
[1730112411191,0.15137009,68774.0,68773.0,0.82547593]
[1730112411530,0.15937009,68774.0,68773.0,0.82547593]
[1730112411664,0.15537009,68774.0,68773.0,0.82547593]
[1730112411869,0.15937009,68774.0,68773.0,0.82547593]
[1730112412358,0.15537009,68774.0,68773.0,0.82547593]
[1730112412488,0.19701999,68774.0,68773.0,0.82547593]
[1730112413022,0.19901999,68774.0,68773.0,0.82547593]
[1730112414227,0.20101999,68774.0,68773.0,0.82547593]
[1730112414444,0.19701999,68774.0,68773.0,0.82547593]
[1730112414879,0.19901999,68774.0,68773.0,0.82547593]
[1730112415299,0.19901999,68774.0,68773.0,0.75017593]
[1730112416860,0.19901999,68774.0,68773.0,0.57587593]
[1730112417767,0.19902743,68774.0,68773.0,0.57587593]
[1730112419276,0.34953124,68774.0,68773.0,0.57087593]
[1730112419489,0.37135991,68774.0,68773.0,0.56887593]
[1730112419703,0.37135991,68774.0,68773.0,0.56387593]
[1730112421344,0.39318858,68774.0,68773.0,0.56387593]
[1730112421752,0.3058739,68774.0,68773.0,0.56387593]
[1730112422389,0.41501725,68774.0,68773.0,0.56387593]
[1730112422596,0.3058739,68774.0,68773.0,0.56387593]
[1730112424714,0.31948525,68774.0,68773.0,0.56387593]
[1730112425964,0.4286286,68774.0,68773.0,0.56387593]
[1730112426605,0.3058739,68774.0,68773.0,0.56587593]
[1730112427038,0.3058739,68774.0,68773.0,0.56387593]
[1730112428216,0.3931883,68774.0,68773.0,0.56387593]
[1730112430472,0.3058739,68774.0,68773.0,0.56387593]
[1730112430698,0.41501831,68774.0,68773.0,0.56387593]
[1730112430928,0.3058739,68774.0,68773.0,0.56387593]
[1730112432271,0.39319105,68774.0,68773.0,0.56387593]
[1730112432498,0.3058739,68774.0,68773.0,0.56387593]
[1730112437515,0.6763739,68774.0,68773.0,0.55887593]
[1730112437723,1.45982574,68774.0,68773.0,0.46887593]
[1730112437973,1.45982574,68774.0,68773.0,0.43887593]
[1730112438633,1.3456759,68774.0,68773.0,0.43887593]
[1730112438844,1.3596759,68774.0,68773.0,0.43887593]
[1730112439082,1.3576759,68774.0,68773.0,0.43887593]
[1730112440152,1.3616759,68774.0,68773.0,0.43887593]
[1730112440591,1.35985899,68774.0,68773.0,0.43887593]
[1730112440805,1.34585899,68774.0,68773.0,0.43887593]
[1730112441020,1.37385899,68774.0,68773.0,0.43887593]
[1730112441861,1.23789999,68774.0,68773.0,0.43887593]
[1730112443386,1.50055364,68774.0,68773.0,0.43887593]
[1730112443600,1.3884038,68774.0,68773.0,0.43887593]
[1730112444220,1.23789999,68774.0,68773.0,0.43887593]
[1730112444786,1.32455583,68774.0,68773.0,0.43887593]
[1730112446201,1.34734176,68774.0,68773.0,0.43887593]
[1730112446409,1.32455583,68774.0,68773.0,0.43887593]
[1730112447471,1.42735174,68774.0,68773.0,0.43887593]
[1730112447687,1.44135174,68774.0,68773.0,0.43887593]
[1730112448639,1.55350158,68774.0,68773.0,0.43887593]
[1730112449113,1.56750158,68774.0,68773.0,0.43887593]
[1730112449319,1.59028755,68774.0,68773.0,0.43887593]
[1730112450402,1.59025397,68774.0,68773.0,0.43887593]
[1730112450654,0.51841,68771.0,68770.0,0.001644]
[1730112450854,0.61557184,68765.0,68764.0,0.001644]
[1730112451133,4.63895661,68765.0,68764.0,0.001644]
[1730112451358,3.73542617,68765.0,68764.0,0.001644]
[1730112451823,3.30177717,68765.0,68764.0,0.001644]
[1730112452232,3.30177717,68765.0,68764.0,0.437914]
[1730112452642,3.31577717,68765.0,68764.0,0.437914]
[1730112453108,1.84188333,68765.0,68764.0,0.437914]
[1730112453317,2.07730349,68765.0,68764.0,0.437914]
[1730112453735,1.96515365,68765.0,68764.0,0.437914]
[1730112453943,2.07730349,68765.0,68764.0,0.437914]
[1730112454395,2.18945333,68765.0,68764.0,0.437914]
[1730112454644,2.06682238,68765.0,68761.0,5.8e-07]
[1730112454867,1.02128265,68762.0,68761.0,5.8e-07]
[1730112455084,1.13343249,68762.0,68761.0,5.8e-07]
[1730112455288,1.13884933,68762.0,68761.0,5.8e-07]
[1730112456411,1.15284933,68762.0,68761.0,5.8e-07]
[1730112456637,1.30900739,68762.0,68761.0,5.8e-07]
[1730112456866,0.74276268,68746.0,68745.0,0.001644]
[1730112457089,0.95097492,68746.0,68745.0,0.001644]
[1730112457305,2.42150533,68746.0,68745.0,0.001644]
[1730112457519,2.55226638,68746.0,68745.0,0.001644]
[1730112458250,2.44011654,68746.0,68745.0,0.001644]
[1730112458455,2.66441622,68746.0,68745.0,0.001644]
[1730112458866,2.70788889,68746.0,68745.0,0.001644]
[1730112459095,2.66441622,68746.0,68745.0,0.001644]
[1730112459540,2.72187321,68746.0,68745.0,0.001644]
[1730112459973,2.75867017,68746.0,68745.0,0.001644]
[1730112460198,2.71521318,68746.0,68745.0,0.001644]
[1730112460384,2.75865489,68746.0,68745.0,0.001644]
[1730112460617,2.71521318,68746.0,68745.0,0.001644]
[1730112460826,2.70121318,68746.0,68745.0,0.001644]
[1730112461034,2.70121318,68746.0,68731.0,0.001644]
[1730112461035,0.395494,68731.0,68730.0,0.00041]
[1730112461274,0.78114765,68731.0,68730.0,0.14041]
[1730112461512,0.50580306,68731.0,68730.0,0.93524984]
[1730112461740,0.25748294,68731.0,68730.0,0.8331]
[1730112462187,0.25748294,68731.0,68730.0,0.94524984]
[1730112462396,0.25218369,68731.0,68730.0,0.8331]
[1730112462604,0.25808389,68731.0,68730.0,0.8331]
[1730112462824,0.25218369,68731.0,68730.0,1.09074584]
[1730112463050,0.25808389,68731.0,68730.0,0.94524984]
[1730112463258,0.26708389,68731.0,68730.0,0.94524984]
[1730112463476,0.26708389,68731.0,68730.0,0.95123984]
[1730112463690,0.26708389,68731.0,68730.0,1.09673584]
[1730112463902,0.01118369,68731.0,68730.0,0.95123984]
[1730112464120,0.02018369,68731.0,68730.0,1.10173584]
[1730112464338,0.00218369,68731.0,68730.0,1.10173584]
[1730112464750,0.01418369,68731.0,68730.0,1.10173584]
[1730112464955,0.00818369,68731.0,68730.0,1.10173584]
[1730112465140,0.00218369,68731.0,68730.0,1.10173584]
[1730112465554,0.00318369,68731.0,68730.0,1.10173584]
[1730112466546,0.00418369,68731.0,68730.0,1.10173584]
[1730112467193,0.00418369,68731.0,68730.0,0.989586]
[1730112468930,0.00418369,68731.0,68730.0,0.987586]
[1730112469146,0.00418369,68731.0,68730.0,0.991586]
[1730112470677,0.00418355,68731.0,68730.0,0.991586]
[1730112470914,0.00418355,68731.0,68730.0,0.989586]
[1730112473203,0.00418355,68731.0,68730.0,0.987586]
[1730112473505,0.00418355,68731.0,68730.0,1.10373584]
[1730112473711,0.00418355,68731.0,68730.0,1.11373584]
[1730112473928,0.00418355,68731.0,68730.0,1.10973584]
[1730112474151,0.002,68731.0,68730.0,1.10973584]
[1730112474375,0.00418347,68731.0,68730.0,1.10973584]
[1730112476571,0.00418347,68731.0,68730.0,0.999586]
[1730112477688,0.00418347,68731.0,68730.0,0.997586]
[1730112477873,0.00418347,68731.0,68730.0,0.999586]
[1730112478087,0.00418347,68731.0,68730.0,0.997586]
[1730112478314,0.00418347,68731.0,68730.0,0.999586]
[1730112479322,0.00418347,68731.0,68730.0,0.84409]
[1730112479323,0.00583147,68731.0,68730.0,0.84409]
[1730112479520,0.00583147,68731.0,68730.0,0.84209]
[1730112480045,0.00583147,68731.0,68730.0,0.84409]
[1730112480654,0.00483147,68731.0,68730.0,0.84409]
[1730112480869,0.00483147,68731.0,68730.0,0.989586]
[1730112481181,0.00483147,68731.0,68730.0,0.84409]
[1730112481404,0.00383147,68731.0,68730.0,0.84409]
[1730112481644,0.00483147,68731.0,68730.0,0.84409]
[1730112481858,0.01184175,68731.0,68730.0,0.84409]
[1730112482080,0.00483147,68731.0,68730.0,0.987586]
[1730112482300,0.00583147,68731.0,68730.0,0.84209]
[1730112482662,0.00583147,68731.0,68730.0,0.84409]
[1730112482883,0.00583147,68731.0,68730.0,0.60489]
[1730112483067,0.00583147,68731.0,68730.0,0.60289]
[1730112483068,0.15733575,68731.0,68730.0,0.60289]
[1730112483271,0.15733575,68731.0,68730.0,0.60489]
[1730112483771,0.15733575,68731.0,68730.0,0.59989]
[1730112483913,0.15633575,68731.0,68730.0,0.60489]
[1730112484323,0.15533575,68731.0,68730.0,0.60489]
[1730112484794,0.15533575,68731.0,68730.0,0.59789]
[1730112484933,0.00984175,68731.0,68730.0,0.59789]
[1730112485130,0.15533575,68731.0,68730.0,0.59989]
[1730112485774,0.15733575,68731.0,68730.0,0.59489]
[1730112485983,0.15733575,68731.0,68730.0,0.59989]
[1730112486421,0.15633575,68731.0,68730.0,0.59989]
[1730112486861,0.55633956,68731.0,68730.0,0.58989]
[1730112487301,0.67933956,68731.0,68730.0,0.58989]
[1730112487942,0.66033956,68731.0,68730.0,0.58989]
[1730112488164,0.7724894,68731.0,68730.0,0.58989]
[1730112489059,0.78564765,68731.0,68730.0,0.58989]
[1730112489501,0.78564765,68731.0,68730.0,0.58289]
[1730112489712,0.78783221,68731.0,68730.0,0.58789]
[1730112490144,0.78783221,68731.0,68730.0,0.58289]
[1730112490480,0.78583221,68731.0,68730.0,0.58289]
[1730112490690,0.78583221,68731.0,68730.0,0.58789]
[1730112491059,0.79783221,68731.0,68730.0,0.58789]
[1730112491265,0.67368237,68731.0,68730.0,0.58789]
[1730112491471,1.03383221,68731.0,68730.0,0.58789]
[1730112491886,1.06048021,68731.0,68730.0,0.58789]
[1730112492023,1.06048021,68731.0,68730.0,0.58989]
[1730112492467,1.06048021,68731.0,68730.0,0.58789]
[1730112493028,1.05829565,68731.0,68730.0,0.58789]
[1730112493236,1.06048012,68731.0,68730.0,0.58789]
[1730112493635,1.04648012,68731.0,68730.0,0.58789]
[1730112493879,0.93433028,68731.0,68730.0,0.58789]
[1730112494083,1.05848012,68731.0,68730.0,0.58989]
[1730112494331,1.05848012,68731.0,68730.0,0.58789]
[1730112494664,1.07210204,68731.0,68730.0,0.58789]
[1730112495304,1.07210204,68731.0,68730.0,0.58989]
[1730112495514,1.06110204,68731.0,68730.0,0.58989]
[1730112496358,1.06110204,68731.0,68730.0,0.58789]
[1730112496359,1.07410204,68731.0,68730.0,0.58789]
[1730112496612,1.22460585,68731.0,68730.0,0.58289]
[1730112496852,1.26356228,68731.0,68730.0,0.44289]
[1730112497075,1.19043645,68731.0,68730.0,0.44289]
[1730112497298,1.1871939,68731.0,68730.0,0.44289]
[1730112497508,1.27761156,68731.0,68730.0,0.52289]
[1730112497713,1.07828661,68731.0,68730.0,0.52289]
[1730112498146,1.27761074,68731.0,68730.0,0.52289]
[1730112498371,1.07828661,68731.0,68730.0,0.52289]
[1730112498579,1.1871939,68731.0,68730.0,0.52289]
[1730112499016,1.07828661,68731.0,68730.0,0.52289]
[1730112499246,1.18724229,68731.0,68730.0,0.52289]
[1730112499505,1.18724229,68731.0,68730.0,0.42944711]
[1730112499506,1.51572226,68731.0,68730.0,0.42944711]
[1730112499746,1.51572226,68731.0,68724.0,0.001646]
[1730112499747,0.514507,68725.0,68724.0,0.001646]
[1730112499963,0.514507,68725.0,68724.0,0.131646]
[1730112499964,0.77716065,68725.0,68724.0,0.131646]
[1730112500188,0.8425339,68725.0,68724.0,0.131646]
[1730112500422,0.77716065,68725.0,68724.0,0.131646]
[1730112500638,0.90152209,68725.0,68724.0,0.131646]
[1730112501064,0.98259562,68725.0,68724.0,0.131646]
[1730112501304,0.90152209,68725.0,68724.0,0.131646]
[1730112501532,0.91552209,68725.0,68724.0,0.131646]
[1730112501743,0.85014884,68725.0,68724.0,0.131646]
[1730112501996,0.85014884,68725.0,68724.0,0.001646]
[1730112501997,1.32795784,68725.0,68724.0,0.001646]
[1730112502195,0.83614884,68725.0,68724.0,0.001646]
[1730112502405,0.8797106,68725.0,68724.0,0.438176]
[1730112502626,0.86414884,68725.0,68724.0,0.438176]
[1730112503082,0.9077106,68725.0,68724.0,0.438176]
[1730112503307,0.86414884,68725.0,68724.0,0.434207]
[1730112503720,0.9077106,68725.0,68724.0,0.434207]
[1730112503983,0.91651237,68725.0,68724.0,0.434207]
[1730112504425,0.87295061,68725.0,68724.0,0.434207]
[1730112504693,0.88695061,68725.0,68724.0,0.434207]
[1730112504910,0.87295061,68725.0,68724.0,0.434207]
[1730112505360,0.88695061,68725.0,68724.0,0.434207]
[1730112506635,0.86414884,68725.0,68724.0,0.434207]
[1730112507897,0.69301081,68725.0,68724.0,0.434207]
[1730112508084,0.94301081,68725.0,68724.0,0.434207]
[1730112509192,0.94301081,68725.0,68724.0,0.436207]
[1730112509629,0.94301081,68725.0,68724.0,0.446207]
[1730112510723,0.94301081,68725.0,68724.0,0.444207]
[1730112511171,0.94301081,68725.0,68724.0,0.446207]
[1730112511384,0.94301081,68725.0,68724.0,0.444207]
[1730112512043,1.11414884,68725.0,68724.0,0.444207]
[1730112512480,1.10014884,68725.0,68724.0,0.444207]
[1730112512929,1.11414884,68725.0,68724.0,0.444207]
[1730112513141,1.15766938,68725.0,68724.0,0.444207]
[1730112513348,1.14366938,68725.0,68724.0,0.444207]
[1730112513549,1.11414884,68725.0,68724.0,0.444207]
[1730112513785,1.15766527,68725.0,68724.0,0.444207]
[1730112513980,1.14366527,68725.0,68724.0,0.444207]
[1730112514409,1.15766527,68725.0,68724.0,0.444207]
[1730112514611,1.15766527,68725.0,68724.0,0.44503]
[1730112514829,1.15931127,68725.0,68724.0,0.44503]
[1730112515696,1.11579484,68725.0,68724.0,0.44503]
[1730112516129,1.15931127,68725.0,68724.0,0.44503]
[1730112516380,0.67565681,68725.0,68724.0,0.56703]
[1730112516600,0.57565681,68725.0,68724.0,0.57203]
[1730112517488,0.56165681,68725.0,68724.0,0.57203]
[1730112517695,0.64965681,68725.0,68724.0,0.57203]
[1730112518145,0.65465681,68725.0,68724.0,0.57203]
[1730112518354,0.65265681,68725.0,68724.0,0.57203]
[1730112520345,0.65765681,68725.0,68724.0,0.57203]
[1730112520792,0.65265681,68725.0,68724.0,0.57203]
[1730112521018,0.64765681,68725.0,68724.0,0.57203]
[1730112521241,0.65965681,68725.0,68724.0,0.57003]
[1730112521455,0.65965681,68725.0,68724.0,0.57203]
[1730112521866,0.65965681,68725.0,68724.0,0.57003]
[1730112522924,0.65965681,68725.0,68724.0,0.57203]
[1730112523131,0.65965681,68725.0,68724.0,0.57703]
[1730112523357,0.65965681,68725.0,68724.0,0.57503]
[1730112523999,0.65965681,68725.0,68724.0,0.57703]
[1730112526895,0.55965681,68725.0,68724.0,0.58203]
[1730112527120,0.55965681,68725.0,68724.0,0.58003]
[1730112527345,0.55965681,68725.0,68724.0,0.58203]
[1730112531486,0.60324606,68725.0,68724.0,0.58203]
[1730112532628,0.60328894,68725.0,68724.0,0.58203]
[1730112532849,0.55965681,68725.0,68724.0,0.58203]
[1730112533760,0.55965681,68725.0,68724.0,0.58003]
[1730112533968,0.55965681,68725.0,68724.0,0.58203]
[1730112534823,0.55965681,68725.0,68724.0,0.58003]
[1730112535878,0.55965681,68725.0,68724.0,0.58203]
[1730112536087,0.55965681,68725.0,68724.0,0.57703]
[1730112536302,0.64285681,68725.0,68724.0,0.57703]
[1730112536566,1.1459932,68725.0,68724.0,0.56503]
[1730112536773,1.21144141,68725.0,68724.0,0.43503]
[1730112536978,1.0423051,68725.0,68724.0,0.43503]
[1730112537197,1.0423051,68725.0,68724.0,0.43703]
[1730112537198,0.91304119,68725.0,68724.0,0.43703]
[1730112537405,0.65584119,68725.0,68724.0,0.48703]
[1730112537615,0.65584119,68725.0,68724.0,0.47703]
[1730112537616,0.73711222,68725.0,68724.0,0.47703]
[1730112537851,0.67884119,68725.0,68724.0,0.48003]
[1730112538075,0.77111295,68725.0,68724.0,0.48003]
[1730112538304,0.68384119,68725.0,68724.0,0.48003]
[1730112538573,0.80493381,68725.0,68724.0,0.48003]
[1730112538796,0.69584119,68725.0,68724.0,0.48003]
[1730112540094,0.80275744,68725.0,68724.0,0.48003]
[1730112540299,0.80494145,68725.0,68724.0,0.48003]
[1730112540530,0.80494215,68725.0,68724.0,0.48203]
[1730112540733,0.69584082,68725.0,68724.0,0.48203]
[1730112540945,0.80494377,68725.0,68724.0,0.48203]
[1730112541171,0.69584082,68725.0,68724.0,0.48203]
[1730112542040,0.80494669,68725.0,68724.0,0.48203]
[1730112542255,0.69584082,68725.0,68724.0,0.48203]
[1730112542987,0.69584082,68725.0,68724.0,0.47703]
[1730112543210,0.761304,68725.0,68724.0,0.48203]
[1730112543865,0.738304,68725.0,68724.0,0.48203]
[1730112544729,0.67284082,68725.0,68724.0,0.48203]
[1730112545185,0.67284082,68725.0,68724.0,0.48003]
[1730112545830,0.67284082,68725.0,68724.0,0.48203]
[1730112546482,0.67284082,68725.0,68724.0,0.48003]
[1730112546707,0.73830165,68725.0,68724.0,0.48003]
[1730112547153,0.73830165,68725.0,68724.0,0.44503]
[1730112547363,0.71530165,68725.0,68724.0,0.58703]
[1730112547577,0.72230165,68725.0,68724.0,0.58703]
[1730112548019,0.65684082,68725.0,68724.0,0.58703]
[1730112548229,0.66484082,68725.0,68724.0,0.58703]
[1730112548436,0.72230165,68725.0,68724.0,0.58703]
[1730112548651,0.72930165,68725.0,68724.0,0.58703]
[1730112549089,0.72230165,68725.0,68724.0,0.58703]
[1730112549278,0.72830165,68725.0,68724.0,0.58703]
[1730112549423,0.72830165,68725.0,68724.0,0.58503]
[1730112550023,0.72831295,68725.0,68724.0,0.58503]
[1730112550444,0.72831295,68725.0,68724.0,0.58703]
[1730112552340,0.72831295,68725.0,68724.0,0.58503]
[1730112553677,0.37831295,68725.0,68724.0,0.70429391]
[1730112553960,0.01683001,68725.0,68724.0,1.22014381]
[1730112554200,0.01683001,68725.0,68724.0,1.22962712]
[1730112554414,0.01683001,68725.0,68724.0,1.23214381]
[1730112554649,0.01683001,68725.0,68724.0,1.1198799]
[1730112555067,0.00983001,68725.0,68724.0,1.1198799]
[1730112555293,0.01083001,68725.0,68724.0,1.1188799]
[1730112555495,0.01083001,68725.0,68724.0,1.1208799]
[1730112555706,0.00483001,68725.0,68724.0,1.1188799]
[1730112556149,0.00583001,68725.0,68724.0,1.1208799]
[1730112556370,0.00583001,68725.0,68724.0,1.11420291]
[1730112556594,0.00483001,68725.0,68724.0,1.11887517]
[1730112557055,0.00583001,68725.0,68724.0,0.85110226]
[1730112557268,0.15133701,68725.0,68724.0,0.85310226]
[1730112557730,0.15033701,68725.0,68724.0,0.85210226]
[1730112557978,0.15133701,68725.0,68724.0,0.85410226]
[1730112558182,0.15033701,68725.0,68724.0,0.85210226]
[1730112558429,0.00483001,68725.0,68724.0,0.84743]
[1730112558660,0.15033701,68725.0,68724.0,0.84943]
[1730112558869,0.00483001,68725.0,68724.0,0.84943]